bitfinex/quotes_BTCUSD_20250512
["timestamp","ask_amount","ask_price","bid_price","bid_amount"]
[1747036357092,0.21745859,104520.0,104510.0,1.06397705]
[1747036357315,0.21745859,104520.0,104510.0,1.07354487]
[1747036357316,0.02610766,104520.0,104510.0,1.07354487]
[1747036357683,0.22502558,104520.0,104510.0,1.06397705]
[1747036357940,0.23459358,104520.0,104510.0,0.4358543]
[1747036358196,0.22502604,104520.0,104510.0,0.62722354]
[1747036358405,0.23459276,104520.0,104510.0,0.6463599]
[1747036358617,0.24416021,104520.0,104510.0,0.62822354]
[1747036358850,0.24416021,104520.0,104510.0,0.64736027]
[1747036359085,0.24416021,104520.0,104510.0,1.06497704]
[1747036359563,0.2154585,104520.0,104510.0,1.06497704]
[1747036359782,0.2250254,104520.0,104510.0,1.07454504]
[1747036360005,0.21046586,104530.0,104520.0,0.20091847]
[1747036360216,0.22003249,104530.0,104520.0,0.71630204]
[1747036360456,0.00956589,104530.0,104520.0,0.73352289]
[1747036360690,0.23457171,104530.0,104520.0,1.05438881]
[1747036360969,0.23457171,104530.0,104520.0,1.08309024]
[1747036361699,0.24613806,104530.0,104520.0,1.07352325]
[1747036361941,0.23657171,104530.0,104520.0,1.08309024]
[1747036362198,0.24613806,104530.0,104520.0,0.65590758]
[1747036362747,0.2557045,104530.0,104520.0,0.67504203]
[1747036362954,0.22700627,104530.0,104520.0,0.34]
[1747036363192,0.01654085,104530.0,104520.0,1.07352289]
[1747036363659,0.01654085,104530.0,104520.0,2.17795989]
[1747036363881,0.22700554,104530.0,104520.0,1.06948881]
[1747036364088,0.01654085,104530.0,104520.0,1.07352289]
[1747036364514,0.22700536,104530.0,104520.0,1.04482118]
[1747036364727,0.22700536,104530.0,104520.0,1.05438836]
[1747036364728,0.21743928,104530.0,104520.0,1.05438836]
[1747036364935,0.01654085,104530.0,104520.0,1.06395526]
[1747036365168,0.002,104530.0,104520.0,2.51346126]
[1747036365383,0.002,104530.0,104520.0,2.37428126]
[1747036365811,0.01,104540.0,104530.0,0.98318001]
[1747036366059,0.01,104540.0,104530.0,1.87249031]
[1747036366269,0.01,104540.0,104530.0,1.50797631]
[1747036366489,0.01,104540.0,104530.0,1.46797631]
[1747036366697,0.01,104540.0,104530.0,1.48367631]
[1747036366916,0.01,104540.0,104530.0,1.72007631]
[1747036367128,0.2319466,104570.0,104560.0,0.22953216]
[1747036367391,0.012,104570.0,104560.0,1.07343487]
[1747036367610,0.02131252,104570.0,104560.0,1.08280973]
[1747036367832,0.02131252,104570.0,104560.0,1.07343487]
[1747036367833,0.03087485,104570.0,104560.0,1.07343487]
[1747036368050,0.03087476,104570.0,104560.0,1.07343487]
[1747036368269,0.02131252,104570.0,104560.0,1.07343487]
[1747036368480,0.24125949,104570.0,104560.0,0.84390289]
[1747036368702,0.232437,104570.0,104560.0,1.05430829]
[1747036368916,0.21331171,104570.0,104560.0,1.0638719]
[1747036369135,0.21331171,104570.0,104560.0,1.08299875]
[1747036369356,0.01249003,104570.0,104560.0,1.08299811]
[1747036369570,0.01249003,104570.0,104560.0,1.09909811]
[1747036369787,0.01249003,104570.0,104560.0,1.10009811]
[1747036370222,0.01249003,104570.0,104560.0,1.47965911]
[1747036370449,0.02156032,104590.0,104580.0,0.21992621]
[1747036370673,0.20336978,104590.0,104580.0,0.71426769]
[1747036370901,0.22249142,104590.0,104580.0,0.0958543]
[1747036371334,0.20080302,104580.0,104570.0,0.34]
[1747036371576,0.21036452,104580.0,104570.0,0.44541727]
[1747036371793,0.22948835,104580.0,104570.0,0.4358543]
[1747036372008,0.2199263,104580.0,104570.0,0.44541718]
[1747036372242,0.2199263,104580.0,104570.0,0.44541727]
[1747036372482,0.01314691,104590.0,104580.0,0.20080311]
[1747036372698,0.22449105,104590.0,104580.0,0.704706]
[1747036373135,0.22349105,104590.0,104580.0,0.71426778]
[1747036373355,0.01314691,104590.0,104580.0,0.72382938]
[1747036373582,0.22249087,104590.0,104580.0,0.73339079]
[1747036373824,0.24161297,104590.0,104580.0,0.50390289]
[1747036374046,0.22249087,104590.0,104580.0,0.71426805]
[1747036374268,0.24161287,104590.0,104580.0,0.72382992]
[1747036374489,0.23305173,104590.0,104580.0,0.73339152]
[1747036374703,0.23305173,104590.0,104580.0,0.74295312]
[1747036374917,0.22349087,104590.0,104580.0,0.73339152]
[1747036375140,0.032268,104590.0,104580.0,0.74295312]
[1747036375357,0.031268,104590.0,104580.0,0.74295202]
[1747036375563,0.04082886,104590.0,104580.0,0.74395202]
[1747036375782,0.23305173,104590.0,104580.0,0.74395202]
[1747036376219,0.032268,104590.0,104580.0,0.74395202]
[1747036376437,0.02170732,104590.0,104580.0,0.74395202]
[1747036376658,0.03126791,104590.0,104580.0,0.33690343]
[1747036376833,0.03126782,104590.0,104580.0,0.74495202]
[1747036377072,0.0408285,104590.0,104580.0,0.74495202]
[1747036377285,0.05038927,104590.0,104580.0,0.74495202]
[1747036377511,0.24161223,104590.0,104580.0,0.73539061]
[1747036377724,0.05038936,104590.0,104580.0,0.74495202]
[1747036377949,0.24161287,104590.0,104580.0,0.71626787]
[1747036378154,0.24082377,104590.0,104580.0,0.72582928]
[1747036378864,0.24082377,104590.0,104580.0,0.0978543]
[1747036378865,0.23126355,104590.0,104580.0,0.0978543]
[1747036379074,0.24756355,104590.0,104580.0,0.0978543]
[1747036379274,0.24756355,104590.0,104580.0,0.09976647]
[1747036379693,0.23800269,104590.0,104580.0,0.0978543]
[1747036380151,0.23800269,104590.0,104580.0,0.002]
[1747036380575,0.23800269,104590.0,104580.0,0.2028032]
[1747036380797,0.23800269,104590.0,104580.0,0.002]
[1747036381029,0.25300269,104590.0,104580.0,0.002]
[1747036381680,0.75690558,104590.0,104580.0,0.002]
[1747036381928,0.21042498,104550.0,104540.0,0.002]
[1747036382178,0.46264498,104550.0,104540.0,0.002]
[1747036382363,0.47141693,104550.0,104540.0,0.342]
[1747036382611,0.47141693,104550.0,104540.0,0.002]
[1747036382859,0.47141693,104550.0,104540.0,0.342]
[1747036383282,0.47141693,104550.0,104540.0,0.002]
[1747036383497,0.47141693,104550.0,104540.0,0.01189226]
[1747036383715,0.47141693,104550.0,104540.0,0.35189226]
[1747036383952,0.21919693,104550.0,104540.0,0.34249003]
[1747036384180,0.00977195,104550.0,104540.0,1.09700328]
[1747036384407,0.00956214,104570.0,104560.0,0.56953143]
[1747036384630,0.21040809,104580.0,104570.0,0.34956288]
[1747036384858,0.21040809,104580.0,104570.0,0.34]
[1747036385072,0.21042498,104550.0,104540.0,0.41639003]
[1747036385289,0.21042498,104550.0,104540.0,0.51224433]
[1747036385530,0.0191284,104550.0,104540.0,0.74491833]
[1747036385747,0.21998904,104550.0,104540.0,0.72778791]
[1747036385977,0.21998904,104550.0,104540.0,0.74691879]
[1747036386186,0.21998904,104550.0,104540.0,0.33101888]
[1747036386403,0.21042498,104550.0,104540.0,0.31188791]
[1747036386622,0.19129367,104560.0,104550.0,0.53129603]
[1747036386623,0.22953142,104560.0,104550.0,0.53129603]
[1747036386839,0.21996818,104560.0,104550.0,0.63671494]
[1747036387051,0.22953197,104560.0,104550.0,0.63671494]
[1747036387263,0.21996864,104560.0,104550.0,0.63671494]
[1747036387478,0.21996864,104560.0,104550.0,0.64627946]
[1747036387951,0.21040522,104560.0,104550.0,0.63671494]
[1747036388186,0.20084152,104560.0,104550.0,0.34]
[1747036388408,0.21674152,104560.0,104550.0,0.34]
[1747036388630,0.21674152,104560.0,104550.0,0.343]
[1747036389085,0.32279582,104560.0,104550.0,0.003]
[1747036389314,0.83084441,104560.0,104550.0,0.006]
[1747036389534,0.86449304,104560.0,104550.0,0.006]
[1747036389750,0.21086064,104550.0,104540.0,0.00249003]
[1747036389970,1.39592353,104550.0,104540.0,0.00249003]
[1747036390861,0.99445134,104550.0,104540.0,0.00249003]
[1747036391086,1.40249993,104550.0,104540.0,0.00249003]
[1747036391300,1.01909997,104550.0,104540.0,0.00249003]
[1747036391721,1.02209997,104550.0,104540.0,0.00249003]
[1747036391911,1.01552357,104550.0,104540.0,0.00249003]
[1747036392115,1.00552357,104550.0,104540.0,0.00249003]
[1747036392335,0.98187494,104550.0,104540.0,0.00249003]
[1747036392538,0.98587494,104550.0,104540.0,0.00249003]
[1747036394559,1.40392353,104550.0,104540.0,0.00249003]
[1747036394988,1.50392353,104550.0,104540.0,0.00249003]
[1747036395217,0.21046524,104530.0,104520.0,0.002]
[1747036395442,0.98920813,104530.0,104520.0,0.002]
[1747036395647,0.58115954,104530.0,104520.0,0.002]
[1747036396484,0.68115954,104530.0,104520.0,0.002]
[1747036396911,0.68715954,104530.0,104520.0,0.003]
[1747036397130,0.70291425,104530.0,104520.0,0.004]
[1747036398197,0.59491425,104530.0,104520.0,0.004]
[1747036398398,0.82895425,104530.0,104520.0,0.004]
[1747036398809,0.92895425,104530.0,104520.0,0.004]
[1747036399668,0.94299577,104530.0,104520.0,0.004]
[1747036400286,1.36104436,104530.0,104520.0,0.004]
[1747036400497,0.95299577,104530.0,104520.0,0.004]
[1747036400744,0.71895577,104530.0,104520.0,0.004]
[1747036400938,0.95283577,104530.0,104520.0,0.004]
[1747036401163,0.94047577,104530.0,104520.0,0.004]
[1747036403160,0.95047577,104530.0,104520.0,0.004]
[1747036404133,1.36367577,104530.0,104520.0,0.004]
[1747036404545,2.00172436,104530.0,104520.0,0.004]
[1747036404748,2.30829002,104530.0,104520.0,0.004]
[1747036405738,0.21056577,104480.0,104470.0,0.74594702]
[1747036405943,0.21056605,104480.0,104470.0,0.54493395]
[1747036406188,0.21056605,104480.0,104470.0,0.55450607]
[1747036406362,0.21056605,104480.0,104470.0,0.54493395]
[1747036406562,0.10456605,104480.0,104470.0,0.73637646]
[1747036406770,0.00957038,104480.0,104470.0,0.86094593]
[1747036407077,0.22970672,104480.0,104470.0,0.86109288]
[1747036407277,0.22013579,104480.0,104470.0,0.86109288]
[1747036407484,0.22970672,104480.0,104470.0,0.86309288]
[1747036407834,0.22970672,104480.0,104470.0,0.8565214]
[1747036407835,0.22013579,104480.0,104470.0,0.8565214]
[1747036408063,0.0287116,104480.0,104470.0,0.86609288]
[1747036408269,0.22970681,104480.0,104470.0,0.86609288]
[1747036408454,0.0287116,104480.0,104470.0,0.86609288]
[1747036408683,0.43491683,104500.0,104490.0,0.19140587]
[1747036408992,0.43491683,104500.0,104480.0,0.26270708]
[1747036408993,0.22968556,104490.0,104480.0,0.3564]
[1747036409193,0.20099521,104480.0,104470.0,0.87490125]
[1747036409403,0.21056614,104480.0,104470.0,1.08548782]
[1747036409539,0.21056614,104480.0,104470.0,1.32229436]
[1747036409744,0.20099521,104480.0,104470.0,1.51496438]
[1747036409946,0.20099521,104480.0,104470.0,1.53410817]
[1747036409947,0.22013716,104480.0,104470.0,1.53410817]
[1747036410211,0.22013716,104480.0,104470.0,1.54367992]
[1747036410411,0.22013716,104480.0,104470.0,1.53410817]
[1747036410575,0.22013716,104480.0,104470.0,1.53110817]
[1747036410938,0.21056596,104480.0,104470.0,1.54067992]
[1747036411126,0.22013716,104480.0,104470.0,1.53110817]
[1747036411327,0.22013716,104480.0,104470.0,1.53310817]
[1747036411533,0.22013643,104480.0,104470.0,1.53310817]
[1747036411729,0.22013643,104480.0,104470.0,1.53610817]
[1747036411730,0.22970763,104480.0,104470.0,1.53610817]
[1747036411953,0.22970763,104480.0,104470.0,1.54567992]
[1747036412154,0.22970763,104480.0,104470.0,1.53610817]
[1747036412409,0.22013716,104480.0,104470.0,0.90790125]
[1747036412625,0.21056641,104480.0,104470.0,0.89130125]
[1747036413677,0.21056641,104480.0,104470.0,0.47740125]
[1747036414146,0.21056641,104480.0,104470.0,0.02514695]
[1747036414348,0.20456641,104480.0,104470.0,0.02514695]
[1747036414905,0.20456641,104480.0,104470.0,0.02214695]
[1747036415322,0.20456641,104480.0,104470.0,0.02314695]
[1747036415948,0.20456641,104480.0,104470.0,0.02114695]
[1747036416374,0.20456641,104480.0,104470.0,0.21258946]
[1747036416589,0.20456641,104480.0,104470.0,0.02114695]
[1747036416787,0.20456641,104480.0,104470.0,0.33964376]
[1747036417061,0.21413634,104480.0,104470.0,0.76688703]
[1747036417270,0.22370754,104480.0,104470.0,0.76688713]
[1747036417482,0.21413634,104480.0,104470.0,0.35878764]
[1747036417700,0.22370736,104480.0,104470.0,0.35868676]
[1747036417905,0.22370736,104480.0,104470.0,0.3682587]
[1747036418343,0.23327856,104480.0,104470.0,0.37783055]
[1747036418560,0.22370736,104480.0,104470.0,0.35996477]
[1747036418784,0.23327856,104480.0,104470.0,0.36006565]
[1747036418992,0.22370736,104480.0,104470.0,0.34092186]
[1747036419281,0.21413634,104480.0,104470.0,0.3504938]
[1747036419482,0.22370736,104480.0,104470.0,0.34092186]
[1747036419691,0.22370736,104480.0,104470.0,0.13990732]
[1747036419839,0.22370736,104480.0,104470.0,0.14182149]
[1747036420075,0.21413689,104480.0,104470.0,0.14182149]
[1747036420285,0.20456587,104480.0,104470.0,0.333264]
[1747036420651,0.20097552,104490.0,104480.0,0.94909479]
[1747036420918,0.22968565,104490.0,104480.0,0.87565379]
[1747036421164,0.60466755,104500.0,104480.0,1.08621957]
[1747036421386,0.22968502,104490.0,104480.0,0.54099539]
[1747036421627,0.22968483,104490.0,104480.0,0.65599155]
[1747036421866,0.23925557,104490.0,104480.0,0.4675543]
[1747036422106,0.22011609,104490.0,104480.0,0.4524543]
[1747036422370,0.22111609,104490.0,104480.0,0.4524543]
[1747036422978,0.22211609,104490.0,104480.0,0.4620255]
[1747036423224,0.22211609,104490.0,104480.0,0.6630208]
[1747036423453,0.20297552,104490.0,104480.0,0.69716257]
[1747036423665,0.20297552,104490.0,104480.0,0.69716266]
[1747036423875,0.21254535,104490.0,104480.0,0.70673332]
[1747036424092,0.21254535,104490.0,104480.0,0.70673341]
[1747036424367,0.23168547,104490.0,104480.0,0.68759182]
[1747036424668,0.23168538,104490.0,104480.0,0.69716275]
[1747036424908,0.24051396,104490.0,104480.0,0.69716275]
[1747036425401,0.24051396,104490.0,104480.0,0.68759182]
[1747036425579,0.24051396,104490.0,104480.0,1.09569131]
[1747036425837,0.2405146,104490.0,104480.0,0.8813543]
[1747036426062,0.24051451,104490.0,104480.0,0.8813543]
[1747036426280,0.2213742,104490.0,104480.0,1.08234969]
[1747036426494,0.2213742,104490.0,104480.0,1.09192071]
[1747036426721,0.23094431,104490.0,104480.0,1.09192071]
[1747036426943,0.22137384,104490.0,104480.0,1.09192071]
[1747036427171,0.22137375,104490.0,104480.0,1.11106239]
[1747036427389,0.23094376,104490.0,104480.0,1.09192071]
[1747036427839,0.23094367,104490.0,104480.0,1.10149164]
[1747036428550,0.23094367,104490.0,104480.0,1.09192071]
[1747036429001,0.24051368,104490.0,104480.0,1.10149164]
[1747036429230,0.23551368,104490.0,104480.0,1.08234969]
[1747036429461,0.23551368,104490.0,104480.0,0.8813543]
[1747036429677,0.23625603,104490.0,104480.0,0.8663543]
[1747036429897,0.22668565,104490.0,104480.0,0.8663543]
[1747036430117,0.21711499,104490.0,104480.0,1.0826496]
[1747036430340,0.21711499,104490.0,104480.0,1.07307849]
[1747036430537,0.2266851,104490.0,104480.0,0.8912255]
[1747036430654,0.2362553,104490.0,104480.0,0.8663543]
[1747036430898,0.21711499,104490.0,104480.0,0.87592541]
[1747036431158,0.21711499,104490.0,104480.0,1.0826496]
[1747036431387,0.226685,104490.0,104480.0,1.0826496]
[1747036431595,0.23625511,104490.0,104480.0,0.8912255]
[1747036431817,0.23625511,104490.0,104480.0,0.8816543]
[1747036432065,0.226685,104490.0,104480.0,0.8912255]
[1747036432277,0.226685,104490.0,104480.0,0.8816543]
[1747036432497,0.22668629,104490.0,104480.0,0.8663543]
[1747036432729,0.20754636,104490.0,104480.0,0.4139]
[1747036432953,0.23944636,104490.0,104480.0,0.4139]
[1747036433802,0.22394636,104490.0,104480.0,0.4139]
[1747036434501,0.23954636,104490.0,104480.0,0.4139]
[1747036435877,0.22394636,104490.0,104480.0,0.4139]
[1747036437890,0.20099521,104480.0,104470.0,0.02161908]
[1747036439118,0.20099521,104480.0,104470.0,0.01285302]
[1747036439667,0.21056614,104480.0,104470.0,0.01285302]
[1747036440708,0.20099521,104480.0,104470.0,0.01285302]
[1747036440929,0.20292492,104480.0,104470.0,0.01285302]
[1747036442925,0.33067922,104480.0,104470.0,0.01285302]
[1747036443149,0.32874951,104480.0,104470.0,0.01285302]
[1747036443424,0.21679521,104480.0,104470.0,0.01285302]
[1747036443608,0.20099521,104480.0,104470.0,0.01285302]
[1747036444033,0.22013625,104480.0,104470.0,0.35185302]
[1747036444246,0.20099457,104480.0,104470.0,1.0983931]
[1747036444468,0.22013616,104480.0,104470.0,1.07924932]
[1747036444692,0.22013597,104480.0,104470.0,0.68706647]
[1747036444925,0.22970708,104480.0,104470.0,0.48927944]
[1747036445140,0.2201367,104480.0,104470.0,0.45716911]
[1747036445591,0.22013661,104480.0,104470.0,0.67732744]
[1747036445841,0.20699475,104480.0,104470.0,0.71769919]
[1747036446065,0.2135655,104480.0,104470.0,0.71769919]
[1747036446291,0.2105655,104480.0,104470.0,0.72727085]
[1747036446514,0.22970754,104480.0,104470.0,0.68998365]
[1747036446754,0.21056614,104480.0,104470.0,0.45816911]
[1747036447458,0.20099521,104480.0,104470.0,0.36231481]
[1747036447695,0.20292492,104480.0,104470.0,0.36231481]
[1747036448959,0.20099521,104480.0,104470.0,0.36231481]
[1747036450177,0.19142419,104480.0,104470.0,0.36231481]
[1747036451473,0.1933539,104480.0,104470.0,0.36231481]
[1747036451707,0.19142419,104480.0,104470.0,0.36231481]
[1747036452142,0.1933539,104480.0,104470.0,0.36231481]
[1747036453293,0.2099539,104480.0,104470.0,0.02231481]
[1747036453499,0.22412419,104480.0,104470.0,0.02231481]
[1747036453939,0.19142419,104480.0,104470.0,0.02231481]
[1747036456244,0.20099466,104480.0,104470.0,0.02231481]
[1747036456493,0.19142419,104480.0,104470.0,0.02231481]
[1747036458951,0.19142419,104480.0,104470.0,0.01285302]
[1747036459854,0.209103,104480.0,104470.0,0.01285302]
[1747036460097,0.22247329,104480.0,104470.0,0.01285302]
[1747036460540,0.20717329,104480.0,104470.0,0.01285302]
[1747036462791,0.41919329,104480.0,104470.0,0.01285302]
[1747036463035,0.19127329,104480.0,104470.0,0.01285302]
[1747036463513,0.193203,104480.0,104470.0,0.01285302]
[1747036463974,0.19127329,104480.0,104470.0,0.01285302]
[1747036464409,0.20099485,104480.0,104470.0,0.98367062]
[1747036464640,0.21056523,104480.0,104470.0,1.01235635]
[1747036464872,0.229707,104480.0,104470.0,1.01235645]
[1747036465088,0.229707,104480.0,104470.0,1.0027846]
[1747036465306,0.23927811,104480.0,104470.0,0.6898938]
[1747036465745,0.229707,104480.0,104470.0,0.69946565]
[1747036465951,0.22013598,104480.0,104470.0,0.69946565]
[1747036466166,0.20554571,104490.0,104480.0,0.20099539]
[1747036466423,0.2009536,104510.0,104490.0,0.23327543]
[1747036466658,0.22007278,104510.0,104500.0,0.72583827]
[1747036466909,0.23920942,104510.0,104500.0,0.0958543]
[1747036467123,0.21050588,104510.0,104500.0,0.0958543]
[1747036467364,0.2009377,104510.0,104500.0,0.0958543]
[1747036467591,0.20095692,104500.0,104490.0,0.34]
[1747036468705,0.20097588,104490.0,104480.0,0.56013633]
[1747036468962,0.22011628,104490.0,104480.0,0.62727849]
[1747036469173,0.22011628,104490.0,104480.0,0.4454255]
[1747036469410,0.22011628,104490.0,104480.0,0.45499661]
[1747036469610,0.22011628,104490.0,104480.0,0.46456763]
[1747036469838,0.22011628,104490.0,104480.0,0.4358543]
[1747036470069,0.21054627,104490.0,104480.0,0.342]
[1747036470754,0.21054627,104490.0,104480.0,0.002]
[1747036470920,0.21054627,104490.0,104480.0,0.004]
[1747036472154,0.20454627,104490.0,104480.0,0.004]
[1747036473225,0.20454627,104490.0,104480.0,0.01377348]
[1747036473626,0.20454627,104490.0,104480.0,0.004]
[1747036476291,0.22034627,104490.0,104480.0,0.004]
[1747036478244,0.20454627,104490.0,104480.0,0.004]
[1747036478453,0.21964627,104490.0,104480.0,0.004]
[1747036478661,0.20454627,104490.0,104480.0,0.004]
[1747036479924,0.19854627,104490.0,104480.0,0.004]
[1747036480099,0.20047598,104490.0,104480.0,0.004]
[1747036482332,0.23217598,104490.0,104480.0,0.004]
[1747036482572,0.23024627,104490.0,104480.0,0.004]
[1747036484340,0.66610057,104490.0,104480.0,0.004]
[1747036484499,1.07407576,104490.0,104480.0,0.004]
[1747036484716,0.66610057,104490.0,104480.0,0.004]
[1747036484932,0.67269006,104490.0,104480.0,0.004]
[1747036485362,0.67269006,104490.0,104480.0,0.002]
[1747036485582,0.20099521,104480.0,104470.0,0.01185302]
[1747036485801,0.43080492,104480.0,104470.0,0.01185302]
[1747036486006,0.42887521,104480.0,104470.0,0.01185302]
[1747036486454,0.8789082,104480.0,104470.0,0.01185302]
[1747036486939,0.563019,104480.0,104470.0,0.01185302]
[1747036487150,0.564019,104480.0,104470.0,0.01185302]
[1747036487368,0.563019,104480.0,104470.0,0.01185302]
[1747036488646,0.566019,104480.0,104470.0,0.01185302]
[1747036489072,0.4385047,104480.0,104470.0,0.01185302]
[1747036489251,0.4395047,104480.0,104470.0,0.01185302]
[1747036489697,0.43191521,104480.0,104470.0,0.01185302]
[1747036489899,0.44471521,104480.0,104470.0,0.01185302]
[1747036490114,0.44771521,104480.0,104470.0,0.01185302]
[1747036490341,0.44871521,104480.0,104470.0,0.01185302]
[1747036490980,0.8791482,104480.0,104470.0,0.01185302]
[1747036491397,0.55666951,104480.0,104470.0,0.01185302]
[1747036491613,0.55666951,104480.0,104470.0,0.01819754]
[1747036491823,0.55666951,104480.0,104470.0,0.01185302]
[1747036492428,1.2935482,104480.0,104470.0,0.01185302]
[1747036492638,0.97106951,104480.0,104470.0,0.01185302]
[1747036493284,0.94016951,104480.0,104470.0,0.01185302]
[1747036493504,0.84431521,104480.0,104470.0,0.01185302]
[1747036495037,0.85388614,104480.0,104470.0,0.01185302]
[1747036495248,0.84431521,104480.0,104470.0,0.33433171]
[1747036495450,0.62596541,104480.0,104470.0,0.56664625]
[1747036495659,0.86958736,104480.0,104470.0,0.37520383]
[1747036495864,0.86001689,104480.0,104470.0,0.36563171]
[1747036496101,0.85044614,104480.0,104470.0,0.04315302]
[1747036496303,0.84944559,104480.0,104470.0,0.23459553]
[1747036496514,0.86758781,104480.0,104470.0,0.24416756]
[1747036496734,0.86758781,104480.0,104470.0,0.05372514]
[1747036496927,0.86758781,104480.0,104470.0,0.36663171]
[1747036497166,0.63788,104480.0,104470.0,1.02264378]
[1747036497404,0.19854507,104490.0,104480.0,0.2320953]
[1747036497630,0.21768482,104490.0,104480.0,0.55457399]
[1747036497872,0.00956956,104490.0,104480.0,1.0095696]
[1747036498141,0.00956956,104490.0,104480.0,0.99999858]
[1747036498377,0.20095619,104500.0,104490.0,0.2416459]
[1747036498622,0.22009393,104500.0,104490.0,0.99997907]
[1747036498850,0.22009393,104500.0,104490.0,1.0095489]
[1747036499078,0.22966284,104500.0,104490.0,1.00954899]
[1747036499543,0.22966284,104500.0,104490.0,0.99140897]
[1747036499775,0.22966284,104500.0,104490.0,0.4679543]
[1747036500035,0.23923285,104500.0,104490.0,0.80957348]
[1747036500252,0.22966348,104500.0,104490.0,0.79043299]
[1747036500761,0.22009475,104500.0,104490.0,0.79043299]
[1747036500980,0.22009475,104500.0,104490.0,0.80000328]
[1747036501423,0.22009475,104500.0,104490.0,0.79043299]
[1747036501658,0.21052593,104500.0,104490.0,0.341]
[1747036502126,0.21052593,104500.0,104490.0,0.001]
[1747036503303,0.22652593,104500.0,104490.0,0.001]
[1747036503521,0.24242593,104500.0,104490.0,0.001]
[1747036504170,0.33828023,104500.0,104490.0,0.001]
[1747036505458,0.66075892,104500.0,104490.0,0.001]
[1747036505694,1.24165197,104500.0,104490.0,0.001]
[1747036505922,1.25457068,104500.0,104490.0,0.001]
[1747036506147,1.15871638,104500.0,104490.0,0.001]
[1747036506373,0.24216596,104480.0,104470.0,0.01185302]
[1747036506591,1.10777895,104480.0,104470.0,0.01185302]
[1747036507283,1.11436529,104480.0,104470.0,0.01185302]
[1747036507779,1.47407026,104480.0,104470.0,0.01185302]
[1747036508436,1.47707026,104480.0,104470.0,0.01185302]
[1747036509586,1.80254895,104480.0,104470.0,0.01185302]
[1747036509798,0.90528496,104460.0,104450.0,0.01]
[1747036510023,0.90528496,104460.0,104450.0,0.01014698]
[1747036510024,1.51453926,104460.0,104450.0,0.01014698]
[1747036510240,1.47932733,104460.0,104450.0,0.01014698]
[1747036510465,2.79080602,104460.0,104450.0,0.00253674]
[1747036510682,2.12092476,104460.0,104450.0,0.00253674]
[1747036510891,1.89430037,104460.0,104450.0,0.00253674]
[1747036511111,1.48255372,104460.0,104450.0,0.00253674]
[1747036511330,1.80503241,104460.0,104450.0,0.00253674]
[1747036511568,1.81203241,104460.0,104450.0,0.00253674]
[1747036512004,1.80503241,104460.0,104450.0,0.00253674]
[1747036512250,1.90088671,104460.0,104450.0,0.00253674]
[1747036512472,1.57650399,104440.0,104430.0,0.01]
[1747036512690,2.11891829,104440.0,104430.0,0.01]
[1747036512931,2.11891829,104440.0,104410.0,0.01]
[1747036512932,0.91426564,104420.0,104410.0,0.01]
[1747036513189,1.71359994,104420.0,104410.0,0.01]
[1747036513448,1.00552619,104390.0,104380.0,0.01]
[1747036513707,1.45863253,104390.0,104380.0,0.01]
[1747036513954,1.53253427,104390.0,104380.0,0.01]
[1747036514196,1.52253427,104390.0,104380.0,0.01]
[1747036514442,1.44254439,104390.0,104380.0,0.01]
[1747036514702,0.25278788,104370.0,104330.0,0.41109614]
[1747036514936,0.66626788,104370.0,104330.0,0.29948401]
[1747036515157,0.66626788,104370.0,104360.0,0.0028491]
[1747036515438,0.76212218,104370.0,104360.0,0.0028491]
[1747036515941,0.73632218,104370.0,104360.0,0.0028491]
[1747036516195,0.94472218,104370.0,104360.0,0.0028491]
[1747036516648,0.62426788,104370.0,104360.0,0.0038491]
[1747036516881,0.84886788,104370.0,104360.0,0.0038491]
[1747036517110,0.00958083,104370.0,104360.0,0.62376104]
[1747036517344,0.00958028,104380.0,104370.0,0.20120705]
[1747036517569,0.21269758,104380.0,104360.0,0.24795681]
[1747036517811,0.22994919,104370.0,104360.0,0.0371491]
[1747036518041,0.21078798,104370.0,104360.0,0.0058491]
[1747036518304,0.02874333,104370.0,104360.0,0.24645718]
[1747036518510,0.01916158,104370.0,104360.0,0.99556077]
[1747036518727,0.22036918,104370.0,104360.0,0.3756491]
[1747036518952,0.22036918,104370.0,104360.0,0.98597902]
[1747036519152,0.21078825,104370.0,104360.0,0.7847526]
[1747036519405,0.21078825,104370.0,104360.0,0.7837526]
[1747036519622,0.001,104380.0,104370.0,0.00958111]
[1747036519835,0.02015946,104380.0,104370.0,1.01035296]
[1747036520043,0.001,104380.0,104370.0,1.52010726]
[1747036520273,0.21176759,104380.0,104370.0,1.50094587]
[1747036520486,0.02873993,104380.0,104370.0,1.52010726]
[1747036520699,0.21079872,104390.0,104380.0,0.21076769]
[1747036520945,0.21079872,104390.0,104380.0,0.0162]
[1747036521177,0.001,104380.0,104370.0,1.00706872]
[1747036521404,0.01057955,104380.0,104370.0,1.51202652]
[1747036521628,0.001,104380.0,104370.0,1.51502652]
[1747036522704,0.01920641,104390.0,104380.0,1.0013511]
[1747036522705,4.887e-05,104390.0,104380.0,1.0013511]
[1747036522970,0.22995408,104390.0,104380.0,1.08762567]
[1747036523231,0.21079655,104390.0,104380.0,0.98219145]
[1747036523493,0.21079655,104390.0,104380.0,0.7810035]
[1747036523710,0.20118777,104380.0,104370.0,0.4199]
[1747036523941,0.20311748,104380.0,104370.0,0.003]
[1747036524187,0.20120705,104370.0,104360.0,0.0028491]
[1747036524406,0.20313676,104370.0,104360.0,0.0028491]
[1747036524663,0.21078807,104370.0,104360.0,0.4119526]
[1747036524886,0.21078807,104370.0,104360.0,0.0028491]
[1747036525321,0.21078807,104370.0,104360.0,0.4119526]
[1747036525539,0.21078807,104370.0,104360.0,0.0028491]
[1747036526181,0.30664237,104370.0,104360.0,0.0028491]
[1747036526850,0.54318237,104370.0,104360.0,0.0028491]
[1747036527083,0.54318237,104370.0,104360.0,0.0048491]
[1747036527547,0.54318237,104370.0,104360.0,0.0068491]
[1747036527765,0.55918237,104370.0,104360.0,0.0068491]
[1747036527984,0.55918237,104370.0,104360.0,0.0018491]
[1747036528648,0.22043208,104340.0,104330.0,0.79398119]
[1747036529075,0.22043208,104340.0,104330.0,0.38487769]
[1747036529958,0.22043208,104340.0,104330.0,0.38502472]
[1747036530173,0.79196432,104340.0,104330.0,0.00314703]
[1747036530392,0.38286082,104340.0,104330.0,0.00314703]
[1747036530634,0.38286082,104340.0,104330.0,0.00414703]
[1747036531082,0.82226432,104340.0,104330.0,0.00414703]
[1747036531324,0.82226432,104340.0,104330.0,0.00314703]
[1747036531539,0.82326432,104340.0,104330.0,0.00314703]
[1747036531721,0.82426432,104340.0,104330.0,0.00314703]
[1747036532067,0.82326432,104340.0,104330.0,0.00314703]
[1747036532270,0.33800298,104340.0,104330.0,0.00314703]
[1747036532518,0.74886298,104340.0,104330.0,0.00314703]
[1747036532732,0.30770298,104340.0,104330.0,0.00314703]
[1747036532940,0.52778298,104340.0,104330.0,0.00314703]
[1747036533139,0.52778298,104340.0,104330.0,0.00414703]